Cogmind - Beta 16.1 *** ADVENTURER MODE // 2026.03.26 @ 20:58:23 Player: Kirbomon Result: Destroyed by G-47 Trooper with Particle Gun Performance ------------- Evolutions (1) 500 Regions Visited (3) 600 Robots Destroyed (14) 70 Value Destroyed (212) 212 Prototype IDs (2) 40 Alien Tech Used (0) 0 Bonus (0) 0 TOTAL SCORE: 1422 Bonus ------- None Cogmind --------- Core Integrity 0/400 Matter 300/300 Energy 0/100 System Corruption 0% Temperature Cool (9) Movement Core (200) Ox3 Location -9/Materials Parts ------- > --- POWER (2) -------- (None) > --- PROPULSION (2) --- (None) > --- UTILITY (3) ------ Medium Storage Unit ECM Suite > --- WEAPON (2) ------- (None) > --- INVENTORY (10) --- Armored Wheel Armored Wheel Light Assault Rifle Light Assault Rifle Mining Laser Peak State ------------ > --- POWER ------------ Ion Engine Light Ion Engine > --- PROPULSION ------- Armored Wheel Armored Wheel > --- UTILITY ---------- Medium Storage Unit Improved Sensor Array ECM Suite > --- WEAPON ----------- EM Pulse Gun Medium Laser > --- INVENTORY -------- Armored Wheel Armored Wheel Mining Laser [Rating: 13] Favorites ----------- Power Ion Engine Engine Ion Engine Propulsion Armored Wheel Wheel Armored Wheel Utility ECM Suite Device ECM Suite Storage Medium Storage Unit Weapon Medium Laser Energy Gun Medium Laser Build | -11 -10 -10 -9 ------- Run | Yrd Mat Min Mat Slots Evolved 2 | . . . 2 Power 1 | . . . 1 Propulsion . | . . . . Utility 1 | . . . 1 Weapon . | . . . . Parts Attached 12 | 5 4 1 2 Power 2 | 1 . . 1 Engine 2 | 1 . . 1 Core . | . . . . Reactor . | . . . . Propulsion 4 | 2 2 . . Treads . | . . . . Leg . | . . . . Wheel 4 | 2 2 . . Hover . | . . . . Flight . | . . . . Utility 4 | . 2 1 1 Device 3 | . 2 1 . Storage 1 | . . . 1 Processor . | . . . . Hackware . | . . . . Protection . | . . . . Artifact . | . . . . Weapon 2 | 2 . . . Energy Gun 2 | 2 . . . Energy Cannon . | . . . . Ballistic Gun . | . . . . Ballistic Cannon . | . . . . Launcher . | . . . . Special Weapon . | . . . . Impact Weapon . | . . . . Slashing Weapon . | . . . . Piercing Weapon . | . . . . Special Melee Weapon . | . . . . Unidentified Prototypes . | . . . . Parts Lost 7 | . . . 7 Power 2 | . . . 2 Propulsion 2 | . . . 2 Utility 1 | . . . 1 Weapon 2 | . . . 2 Highest Loss Streak 4 | . . . 4 To Critical Strikes . | . . . . Average Backups 4 | 3 4 5 4 Power . | . 1 1 . Propulsion 1 | 1 2 2 2 Utility . | . 1 1 . Weapon . | . . 1 2 Tool/Special . | . . . . Unused Backups 8 | . 3 . 5 Power . | . . . . Propulsion 4 | . 2 . 2 Utility 1 | . 1 . . Weapon 3 | . . . 3 Tool/Special . | . . . . Average Slot Usage (%) 85 | . 91 100 64 Engine 12 | . 14 14 8 Wheel 24 | . 27 28 15 Device 21 | . 20 28 19 Storage 2 | . . . 10 Energy Gun 23 | . 28 28 10 Peak Build Rating 13 | 5 9 11 13 Average Rating 8 | 3 8 10 8 On Entrance 6 | . 5 9 11 Avg Prop Armor Cover (%) . | . . . . Naked Turns . | . . . . Heaviest Build 25 | 9 12 12 25 Greatest Support 26 | 26 26 24 24 Greatest Overweight (x) 2 | . 2 . 1 Average Overweight (x) . | . . . . Largest Inventory Capacity 10 | 5 5 5 10 Average Capacity 6 | 5 5 5 9 Most Carried 5 | 4 5 5 5 Average Carried 4 | 2 4 5 4 Final Capacity 10 | 5 5 5 10 Final Carried 5 | 4 5 5 5 Class Distribution -------------------- 100% | Mutant Dominant Class ---------------- Mutant | -10/Materials Mutant | -10/Mines Mutant | -9/Materials Resources | -11 -10 -10 -9 ----------- Run | Yrd Mat Min Mat Matter Collected 320 | 245 45 . 30 Remotely . | . . . . Salvage Created 296 | . 163 . 133 Parts 28 | . 12 . 16 Haulers Intercepted . | . . . . Recyclers Shooed . | . . . . Parts Field Recycled . | . . . . Retrieved Matter . | . . . . Parts Self-Destructed . | . . . . Prevented . | . . . . Parts Restored . | . . . . Kills | -11 -10 -10 -9 ------- Run | Yrd Mat Min Mat Combat Hostiles Destroyed 14 | . 6 . 8 Guns 11 | . 6 . 5 AOE 3 | . . . 3 Classes Destroyed 2 | . 2 . . Swarmer 11 | . 4 . 7 Grunt 3 | . 2 . 1 Best Kill Streak 4 | . 3 . 4 Combat Bots Only 4 | . 3 . 4 Max Kills in Single Turn 3 | . 1 . 3 Gunslinging . | . . . . Exploded 3 | . . . 3 Melee . | . . . . Uniques/NPCs Destroyed . | . . . . Combat | -11 -10 -10 -9 -------- Run | Yrd Mat Min Mat Hostile Shots Fired 127 | . 26 . 101 Missed 31 | . 8 . 23 Hits 96 | . 18 . 78 Projectile 96 | . 18 . 78 Critical Strikes 3 | . . . 3 Damage Taken 961 | . 141 4 816 Core 420 | . 20 . 400 Absorbed by Shields . | . . . . Ignored by Resistances 292 | . 44 1 247 Core Remaining (%) 96 | 100 . 92 . Volleys Fired 33 | . 16 . 17 Largest 2 | . 2 . 2 Hottest 90 | . 90 . 90 Shots Fired 59 | . 32 . 27 Gun 59 | . 32 . 27 Cannon . | . . . . Launcher . | . . . . Special . | . . . . Kinetic . | . . . . Thermal 33 | . 16 . 17 Explosive . | . . . . Electromagnetic 26 | . 16 . 10 Robot Hit Streak 7 | . 6 . 7 Robot Miss Streak 4 | . 4 . 3 Penetration Max . | . . . . Secondary Targets 2 | . . . 2 Max Gunslinging Chain 1 | . . . 1 Shots Hit Robots 33 | . 19 . 14 Core Hits 19 | . 9 . 10 Critical Kills . | . . . . Critical Parts Destroyed . | . . . . Critical Strikes 1 | . . . 1 Burn 1 | . . . 1 Melee Attacks . | . . . . Impact . | . . . . Slashing . | . . . . Piercing . | . . . . Sneak Attacks . | . . . . Combat Hostiles . | . . . . Follow-up Attacks . | . . . . Damage Inflicted 497 | . 260 . 237 Guns 431 | . 260 . 171 Cannons . | . . . . Explosions 66 | . . . 66 Melee . | . . . . Ramming . | . . . . Kinetic . | . . . . Thermal 343 | . 149 . 194 Explosive . | . . . . Electromagnetic 154 | . 111 . 43 Impact . | . . . . Slashing . | . . . . Piercing . | . . . . Highest Corruption . | . . . . Average Corruption . | . . . . Corruption Purged . | . . . . Corruption Blocked . | . . . . Overload Shots . | . . . . Overflow Damage . | . . . . Projectiles . | . . . . Explosions . | . . . . Melee . | . . . . Knockbacks . | . . . . Impact . | . . . . Kinetic . | . . . . Secondary . | . . . . Self-Inflicted Damage . | . . . . Shots . | . . . . Rammed . | . . . . Targets Rammed . | . . . . Kicked . | . . . . Crushed . | . . . . Highest Temperature 209 | . 138 . 209 Average Temperature 86 | . 60 . 117 Received Heat Transfer 663 | . 90 . 573 Effects 2 | . . . 2 Energy Bleed 2 | . . . 2 Siege Activations . | . . . . Martial Activations . | . . . . Shielding Activations . | . . . . Robots Disrupted . | . . . . Combat Hostiles . | . . . . Robots Corrupted . | . . . . Combat Hostiles . | . . . . Parts Fried . | . . . . Impact Corruptions . | . . . . Robots Melted . | . . . . Combat Hostiles . | . . . . Parts Melted . | . . . . Heat Transferred 988 | . 444 . 544 Parts Sabotaged . | . . . . Parts Stolen . | . . . . Parts Stripped . | . . . . Power Chain Reactions 1 | . . . 1 Alert | -11 -10 -10 -9 ------- Run | Yrd Mat Min Mat Maximum Alert Level . | . . . . Low Security (%) 100 | 100 100 100 100 Level 1 . | . . . . Level 2 . | . . . . Level 3 . | . . . . Level 4 . | . . . . Level 5 . | . . . . High Security . | . . . . Max Security . | . . . . Peak Influence 148 | . 70 . 148 Initial . | . . . . Average 35 | . 30 . 69 Influence Increases 345 | . 157 . 188 Destroy 0b10 Robot/C 280 | . 120 . 160 Destroy Leader 40 | . 20 . 20 Successful Hack 2 | . 2 . . Destroy Structure 8 | . . . 8 Partial Spotted 15 | . 15 . . Influence Decreases 317 | . 157 . 160 Time Decay 247 | . 157 . 90 Lost Part 70 | . . . 70 Squads Dispatched 1 | . 1 . . Investigation 1 | . 1 . . Extermination . | . . . . Reinforcement . | . . . . Assault . | . . . . Garrison . | . . . . Intercept . | . . . . Searches Triggered . | . . . . Construction Impeded . | . . . . Haulers Reinforced . | . . . . Active Scanning Responses . | . . . . Cargo Convoy Interrupts . | . . . . Stealth | -11 -10 -10 -9 --------- Run | Yrd Mat Min Mat Distress Signals 1 | . 1 . . Communications Jammed . | . . . . Distress Signals . | . . . . Times Spotted 23 | . 13 . 10 Peak Tracking Total 5 | . 3 . 5 Tactical Retreats 3 | . 2 . 1 ECM-based Alert Blocks 7 | . 3 . 4 Traps | -11 -10 -10 -9 ------- Run | Yrd Mat Min Mat Traps Triggered 1 | . 1 . . Indirectly . | . . . . Trap Hack Attempts . | . . . . Triggered . | . . . . Disarmed 1 | . 1 . . Reprogrammed . | . . . . Reused . | . . . . Traps Extracted . | . . . . Installed . | . . . . Triggered . | . . . . Machines | -11 -10 -10 -9 ---------- Run | Yrd Mat Min Mat Machines Disabled . | . . . . Max in Single Turn . | . . . . Machines Repaired . | . . . . Machines Dismantled . | . . . . Machines Sabotaged . | . . . . Overloaded Fab Kills . | . . . . Hacking | -11 -10 -10 -9 --------- Run | Yrd Mat Min Mat Machines Accessed 5 | . 4 1 . Terminals 4 | . 4 . . Fabricators . | . . . . Repair Stations . | . . . . Recycling Units . | . . . . Scanalyzers . | . . . . Garrison Access . | . . . . Total Hacks 10 | . 9 1 . Successful 5 | . 4 1 . Failed 5 | . 5 . . Catastrophic 1 | . 1 . . Database Lockouts . | . . . . Manual . | . . . . Terminals 9 | . 9 . . Fabricators . | . . . . Repair Stations . | . . . . Recycling Units . | . . . . Scanalyzers . | . . . . Garrison Access . | . . . . Terminal Hacks 5 | . 4 1 . Record 1 | . 1 . . Prototype ID Bank 1 | . 1 . . Open Door 1 | . . 1 . Disarm Traps 1 | . 1 . . Maintenance Status 1 | . 1 . . Fabricator Hacks . | . . . . Repair Station Hacks . | . . . . Recycling Unit Hacks . | . . . . Scanalyzer . | . . . . Garrison Access Hacks . | . . . . Unauthorized Hacks . | . . . . Terminals . | . . . . Fabricators . | . . . . Repair Stations . | . . . . Recycling Units . | . . . . Scanalyzers . | . . . . Garrison Access . | . . . . Data Cores Recovered . | . . . . Used . | . . . . Hacking Detections 3 | . 3 . . Full Trace Events 1 | . 1 . . Feedback Events . | . . . . Feedback Blocked . | . . . . Robot Schematics Acquired . | . . . . Robots Built . | . . . . Authchips . | . . . . Time . | . . . . Total Robot Build Rating . | . . . . Part Schematics Acquired . | . . . . Parts Built . | . . . . Authchips . | . . . . Time . | . . . . Total Part Build Rating . | . . . . Part Studies Acquired . | . . . . Parts Repaired . | . . . . Time . | . . . . Parts Recycled . | . . . . Recycled Matter . | . . . . Retrieved Matter . | . . . . Retrieved Components . | . . . . Parts Scanalyzed . | . . . . Part Schematics Acquired . | . . . . Parts Damaged . | . . . . Bothacking | -11 -10 -10 -9 ------------ Run | Yrd Mat Min Mat Used RIF Installer . | . . . . Robots Hacked . | . . . . Non-combat . | . . . . Combat . | . . . . Robot Hacks Applied . | . . . . Relay Couplers Released . | . . . . Fabnet Peak Effective % . | . . . . Robots Rewired . | . . . . Allies Hacked . | . . . . Hacks Repelled . | . . . . Allies | -11 -10 -10 -9 -------- Run | Yrd Mat Min Mat Total Allies . | . . . . Largest Group . | . . . . Highest-Rated Group . | . . . . Highest-Rated Ally . | . . . . Total Orders . | . . . . Ally Attacks . | . . . . Total Damage . | . . . . Kills . | . . . . Allies Corrupted . | . . . . Allies Melted . | . . . . Intel | -11 -10 -10 -9 ------- Run | Yrd Mat Min Mat Active Infowar (turns) 687 | . 376 94 217 Sensors 557 | . 376 89 92 ECM 612 | . 301 94 217 Robot Analysis Total . | . . . . Derelict Logs Recovered 1 | . . 1 . Drone Launches . | . . . . Drone Recoveries . | . . . . Exploration | -11 -10 -10 -9 ------------- Run | Yrd Mat Min Mat Turns Passed 808 | 54 443 94 217 Spaces Moved 604 | 50 422 91 41 Core 14 | 11 3 . . Treads . | . . . . Legs . | . . . . Wheels 590 | 39 419 91 41 Hover . | . . . . Flight . | . . . . Fastest Speed 50 | 50 90 90 90 Average Speed 90 | 80 90 90 104 Slowest Speed 150 | 90 150 90 105 Overloaded Moves . | . . . . Propulsion Burnouts . | . . . . Robots Hopped . | . . . . Potential Cave-ins . | . . . . Cave-ins Triggered . | . . . . Exploration Rate (%) 23 | 3 60 24 8 Regions Visited 3 Branch Regions 1 Pre-discovered Areas . | . . . . Known Exits Taken . | . . . . Unknown Exits Taken 3 | 1 1 1 . Scrap Searched . | . . . . Spaces Dug . | . . . . Terrain Destroyed 7 | . . . 7 Melee . | . . . . Projectile . | . . . . AOE 7 | . . . 7 Terrain Rammed . | . . . . Walls Destroyed . | . . . . Machines Disabled . | . . . . Actions | -11 -10 -10 -9 --------- Run | Yrd Mat Min Mat Total 807 | 63 453 102 189 Wait 137 | . . 10 127 Move 601 | 49 421 90 41 Hop . | . . . . Pick Up 18 | 9 7 . 2 Fast Attach 2 | . 1 1 . Attach 10 | 5 3 . 2 Detach . | . . . . Swap . | . . . . Drop 6 | . 5 1 . Fire 33 | . 16 . 17 Melee . | . . . . Ram . | . . . . Kick . | . . . . Crush . | . . . . Escape Stasis . | . . . . Rewire . | . . . . Trap . | . . . . Miscellaneous . | . . . . Route ------- -11/Scrapyard -10/Materials (discovered 3 exits: [*Mat x2] / *Min) -10/Mines -9/Materials History --------- Turn | Location | Event 25 | -11/Scrapyard | Discovered new exit (range 16) 55 | -11/Scrapyard | Entered Materials 106 | -10/Materials | Discovered new exit (range 6) 313 | -10/Materials | Build established: Mutant 410 | -10/Materials | Discovered new exit (range 7) 423 | -10/Materials | Discovered new exit (range 16) 498 | -10/Materials | Entered Mines 504 | -10/Mines | Met a Derelict who couldn't figure out how to use a Trap Extractor 552 | -10/Mines | Learned Materials trap positions 578 | -10/Mines | Discovered new exit (range 15) 592 | -10/Mines | Entered Materials 592 | -9/Materials | Evolved 2 slots: Power x1, Utility x1 593 | -9/Materials | Loaded intel: 20 trap records 704 | -9/Materials | Lost 3 parts (2p1w) 760 | -9/Materials | Core integrity fell below 50% 788 | -9/Materials | Lost 4 parts (2n1u1w) 788 | -9/Materials | Core integrity fell below 20% 809 | -9/Materials | Destroyed by G-47 Trooper with Particle Gun Last Messages --------------- To regain energy, simply wait via the mouse wheel, '.', or KP5. Also make sure your per-turn energy generation is a net positive, and consider deactivating power-draining parts if not. R-06 Scavenger collects Flight Unit. Med. Laser destroyed. R-06 Scavenger collects Lgt. Assault Rifle. R-06 Scavenger collects Sml. Laser. R-06 Scavenger collects Heat Sink. K-01 Serf collects debris. Arm. Wheel destroyed. K-01 Serf collects debris. Arm. Wheel destroyed. Critical hit (Burn: +37). K-01 Serf collects debris. Critical hit (Burn: +37). K-01 Serf collects debris. Imp. Sensor Array destroyed. K-01 Serf collects debris. Critical hit (Burn: +37). K-01 Serf collects debris. Map ----- +----------------------------------------------------+ | ??????????????????????????????????????????????? | | ??????????????????????????????????????????????? | | ??????????????????????????????????????????????? | | ??????????????????????????????????????????????? | | ???????????????????????????????#####??????????? | | ???????????????????????????????# #??????????? | | ???????????????????############# #??????????? | | ???????????????????# # #??????????? | | ???????????????????# + #??????????? | | ???????????????????# # #??????????? | | ???????????????????# # #??????????? | | ???????????????????# ! # #??????????? | | ???????????????????# # #??????????? | | ???????????????????# # #??????????? | | ???????????????????#######/##### #??????????? | | ?????????????????######### ##### #??????????? | | ???????????????? # #??????????? | | ???????????????# """ # % #??????????? | | ???????????????# """ # #??????????? | | ???????????????# """ # ########??????????? | | ???????????????+ # ##????????????????? | | ???????????????# """ # %##????????????????? | | ???????????????# """ +% ##????????????????? | | ???????????????# """ # #?????????????????? | | ???????????????? # #?????????????????? | | ??????????????????#######@ ##????????????????? | | ????????????????######## a% #????????????????? | | ????????????????# = g % #????????????????? | | ????????????????# ==* #????????????????? | | ????????????????# % #????????????????? | | ????????????????# %#### #????????????????? | | ????????????????# ???#######????????????????? | | ????????????????# ???????????????????????????? | | ??????????????? ????????????????????????????? | | ?????????????? ?????????????????????????????? | | ????????????? ??????????????????????????????? | | ????????????###???????????????????????????????? | | ??????????????????????????????????????????????? | | ??????????????????????????????????????????????? | | ??????????????????????????????????????????????? | | ??????????????????????????????????????????????? | | ??????????????????????????????????????????????? | | ??????????????????????????????????????????????? | | ??????????????????????????????????????????????? | | ??????????????????????????????????????????????? | | ??????????????????????????????????????????????? | | ??????????????????????????????????????????????? | | ??????????????????????????????????????????????? | | ??????????????????????????????????????????????? | | ??????????????????????????????????????????????? | +----------------------------------------------------+ Best States ------------- Heat Dissipation 28 Energy Generation 15 Energy Capacity 275 Matter Stores 300 Matter Capacity 300 Sight Range 16 Robot Scan Range 15 Terrain Scan Density 10 ECM Strength 1 Resistance: KI 20 Resistance: TH 20 Resistance: EX 20 Resistance: EM 20 Resistance: I 20 Resistance: S 20 Resistance: P 20 Evasion (%) 50 Offensive Hacking 10 Item Schematics ----------------- None Robot Schematics ------------------ None Fabricated ------------ Nothing Repaired ---------- Nothing Studied --------- None Alien Tech Used ----------------- None Achievements -------------- None Challenges ------------ None Game ------ Seed DispersalMachineInterpreter Manual? 0 Play Time 00:15:26 Cumulative 2.3 hours Start 2026.03.26 @ 20:39:45 End 2026.03.26 @ 20:58:23 Sessions 1 Manual Loads 0 Difficulty Adventurer Special Mode None Game No. 4 Rogue 0 Adventurer 4 Explorer 0 Win Type - Total 0 Types 0/0/0/0/0/0/0/0/0/0 Lore% 2 Gallery% 5 Achievement% 7 Wizard Run 0 Options --------- Layout 0 ASCII 0 Keyboard 0 Movement Mouse Keybinds 0 Fullscreen 1 Font 18/SmallcapsGlow Map View 38x25 Zoom Use 95% Tactical HUD 0 Map Filters NONE Filters NONE Steam 1 RUN: 4e418228-9ae0-4a25-829f-19669f2292c8